[Event "Titled Tuesday Blitz January 03 Late 2023"]
[White "Korchmar, Vasiliy"]
[Black "Altman, Joshua"]
[WhiteFideId "24131750"]
[BlackFideId "426210"]
[WhiteElo "2438"]
[BlackElo "2120"]
[Result "0-1"]
[Round "06"]
[TimeControl "180+2"]
[Date "2023.01.03"]
[WhiteClock "0:00:04"]
[BlackClock "0:00:12"]

1. e4 {[%clk 0:02:58]}  e6 {[%clk 0:03:00]} 2. d4 {[%clk 0:02:58]}  d5 {[%clk 0:03:00]} 3. e5 {[%clk 0:02:58]}  c5 {[%clk 0:03:00]} 4. c3 {[%clk 0:02:58]}  Nc6 {[%clk 0:03:01]} 5. Nf3 {[%clk 0:02:59]}  Qb6 {[%clk 0:03:01]} 6. Be2 {[%clk 0:02:59]}  cxd4 {[%clk 0:02:58]} 7. cxd4 {[%clk 0:02:58]}  Nge7 {[%clk 0:02:59]} 8. Na3 {[%clk 0:02:58]}  Nf5 {[%clk 0:02:59]} 9. Nc2 {[%clk 0:02:59]}  Bb4+ {[%clk 0:02:59]} 10. Kf1 {[%clk 0:02:48]}  Be7 {[%clk 0:02:59]} 11. h4 {[%clk 0:02:32]}  h5 {[%clk 0:02:59]} 12. g3 {[%clk 0:02:32]}  Bd7 {[%clk 0:02:57]} 13. Kg2 {[%clk 0:02:29]}  Rc8 {[%clk 0:02:55]} 14. Bd3 {[%clk 0:02:30]}  g6 {[%clk 0:02:54]} 15. Bxf5 {[%clk 0:02:24]}  exf5 {[%clk 0:02:53]} 16. Bg5 {[%clk 0:02:22]}  Be6 {[%clk 0:02:49]} 17. Qd2 {[%clk 0:02:12]}  Qd8 {[%clk 0:01:57]} 18. Rhc1 {[%clk 0:02:08]}  Bxg5 {[%clk 0:01:56]} 19. Nxg5 {[%clk 0:02:09]}  Qe7 {[%clk 0:01:57]} 20. Ne3 {[%clk 0:01:48]}  O-O {[%clk 0:01:54]} 21. Rc5 {[%clk 0:01:47]}  Rfd8 {[%clk 0:01:35]} 22. Rac1 {[%clk 0:01:46]}  a6 {[%clk 0:01:24]} 23. b4 {[%clk 0:01:42]}  Na7 {[%clk 0:01:22]} 24. Kh2 {[%clk 0:01:33]}  b6 {[%clk 0:01:19]} 25. Rxc8 {[%clk 0:01:14]}  Rxc8 {[%clk 0:01:15]} 26. Rxc8+ {[%clk 0:01:14]}  Nxc8 {[%clk 0:01:15]} 27. Qc3 {[%clk 0:01:14]}  Qd7 {[%clk 0:01:09]} 28. a4 {[%clk 0:01:09]}  Ne7 {[%clk 0:01:06]} 29. a5 {[%clk 0:01:00]}  b5 {[%clk 0:01:04]} 30. Qc5 {[%clk 0:00:59]}  Nc6 {[%clk 0:00:55]} 31. Ng2 {[%clk 0:00:48]}  Nd8 {[%clk 0:00:33]} 32. Nf4 {[%clk 0:00:46]}  Nc6 {[%clk 0:00:29]} 33. Qb6 {[%clk 0:00:40]}  Nxb4 {[%clk 0:00:27]} 34. Nfxe6 {[%clk 0:00:39]}  fxe6 {[%clk 0:00:27]} 35. Nxe6 {[%clk 0:00:40]}  Nc6 {[%clk 0:00:19]} 36. Nc5 {[%clk 0:00:38]}  Qc8 {[%clk 0:00:20]} 37. Nxa6 {[%clk 0:00:34]}  Nxd4 {[%clk 0:00:18]} 38. Qxg6+ {[%clk 0:00:04]}  Kf8 {[%clk 0:00:18]} 39. Qf6+ {[%clk 0:00:03]}  Kg8 {[%clk 0:00:18]} 40. Qg6+ {[%clk 0:00:03]}  Kh8 {[%clk 0:00:18]} 41. Nb4 {[%clk 0:00:03]}  Qc4 {[%clk 0:00:13]} 42. Qxh5+ {[%clk 0:00:03]}  Kg7 {[%clk 0:00:13]} 43. Qg6+ {[%clk 0:00:04]}  Kxg6 {[%clk 0:00:12]} 0-1


[Site "https://www.chess.com"]

[Event "Titled Tuesday Blitz January 03 Late 2023"]
[White "Mei, Austin"]
[Black "Wieczorek, Oskar"]
[WhiteFideId "30948479"]
[BlackFideId "1133950"]
[WhiteElo "2218"]
[BlackElo "2512"]
[Result "0-1"]
[Round "06"]
[TimeControl "180+2"]
[Date "2023.01.03"]
[WhiteClock "0:00:18"]
[BlackClock "0:01:48"]

1. e4 {[%clk 0:03:00]}  c5 {[%clk 0:02:56]} 2. Nf3 {[%clk 0:03:01]}  e6 {[%clk 0:02:53]} 3. d4 {[%clk 0:03:00]}  cxd4 {[%clk 0:02:53]} 4. Nxd4 {[%clk 0:03:01]}  Nf6 {[%clk 0:02:53]} 5. Nc3 {[%clk 0:03:00]}  d6 {[%clk 0:02:53]} 6. g4 {[%clk 0:02:58]}  e5 {[%clk 0:02:52]} 7. Nf5 {[%clk 0:02:56]}  h5 {[%clk 0:02:50]} 8. g5 {[%clk 0:02:56]}  Nxe4 {[%clk 0:02:48]} 9. Nxg7+ {[%clk 0:02:56]}  Bxg7 {[%clk 0:02:48]} 10. Nxe4 {[%clk 0:02:57]}  d5 {[%clk 0:02:49]} 11. Ng3 {[%clk 0:02:50]}  Nc6 {[%clk 0:02:48]} 12. Nxh5 {[%clk 0:02:50]}  Rxh5 {[%clk 0:02:49]} 13. Qxh5 {[%clk 0:02:49]}  Nd4 {[%clk 0:02:49]} 14. Qh7 {[%clk 0:01:34]}  Kf8 {[%clk 0:02:36]} 15. Bd3 {[%clk 0:01:00]}  e4 {[%clk 0:02:29]} 16. g6 {[%clk 0:00:52]}  exd3 {[%clk 0:02:22]} 17. Bh6 {[%clk 0:00:52]}  Qe7+ {[%clk 0:02:19]} 18. Be3 {[%clk 0:00:22]}  Nxc2+ {[%clk 0:02:18]} 19. Kd2 {[%clk 0:00:22]}  Nxe3 {[%clk 0:02:06]} 20. fxe3 {[%clk 0:00:23]}  Qb4+ {[%clk 0:02:01]} 21. Kxd3 {[%clk 0:00:21]}  Bf5+ {[%clk 0:01:57]} 22. Ke2 {[%clk 0:00:21]}  Qg4+ {[%clk 0:01:47]} 23. Kd2 {[%clk 0:00:19]}  Bxg6 {[%clk 0:01:47]} 24. Rhg1 {[%clk 0:00:18]}  Qb4+ {[%clk 0:01:47]} 25. Ke2 {[%clk 0:00:18]}  Bxh7 {[%clk 0:01:48]} 0-1


[Site "https://www.chess.com"]

[Event "Titled Tuesday Blitz January 03 Late 2023"]
[White "Derige Kane, Yan"]
[Black "UnknownMagician"]
[WhiteFideId "20665431"]
[WhiteElo "2204"]
[BlackElo "2670"]
[Result "0-1"]
[Round "06"]
[TimeControl "180+2"]
[Date "2023.01.03"]
[WhiteClock "0:00:03"]
[BlackClock "0:00:17"]

1. Nf3 {[%clk 0:02:52]}  d5 {[%clk 0:02:59]} 2. g3 {[%clk 0:02:51]}  Nf6 {[%clk 0:02:57]} 3. Bg2 {[%clk 0:02:51]}  g6 {[%clk 0:02:58]} 4. O-O {[%clk 0:02:49]}  Bg7 {[%clk 0:02:58]} 5. c4 {[%clk 0:02:49]}  c6 {[%clk 0:02:56]} 6. cxd5 {[%clk 0:02:46]}  cxd5 {[%clk 0:02:57]} 7. Nc3 {[%clk 0:02:09]}  d4 {[%clk 0:02:55]} 8. Qa4+ {[%clk 0:02:02]}  Nc6 {[%clk 0:02:54]} 9. Nb5 {[%clk 0:02:02]}  d3 {[%clk 0:02:37]} 10. exd3 {[%clk 0:01:08]}  O-O {[%clk 0:02:37]} 11. Re1 {[%clk 0:01:05]}  Qxd3 {[%clk 0:02:35]} 12. Re3 {[%clk 0:00:47]}  Qd8 {[%clk 0:02:33]} 13. d3 {[%clk 0:00:41]}  a6 {[%clk 0:02:24]} 14. Nc3 {[%clk 0:00:40]}  Bf5 {[%clk 0:02:22]} 15. Ne4 {[%clk 0:00:36]}  Nd5 {[%clk 0:02:20]} 16. Re1 {[%clk 0:00:33]}  Ndb4 {[%clk 0:02:20]} 17. d4 {[%clk 0:00:24]}  b5 {[%clk 0:02:14]} 18. Qb3 {[%clk 0:00:24]}  Be6 {[%clk 0:02:12]} 19. Qd1 {[%clk 0:00:21]}  Nxa2 {[%clk 0:01:59]} 20. Nc5 {[%clk 0:00:18]}  Bd5 {[%clk 0:01:57]} 21. Be3 {[%clk 0:00:04]}  Nab4 {[%clk 0:01:55]} 22. Qd2 {[%clk 0:00:04]}  Re8 {[%clk 0:01:44]} 23. Red1 {[%clk 0:00:04]}  e6 {[%clk 0:01:41]} 24. h4 {[%clk 0:00:04]}  a5 {[%clk 0:01:37]} 25. Bg5 {[%clk 0:00:04]}  Qc7 {[%clk 0:01:28]} 26. Bh6 {[%clk 0:00:04]}  Red8 {[%clk 0:01:13]} 27. Bg5 {[%clk 0:00:04]}  Rdc8 {[%clk 0:01:09]} 28. Bf4 {[%clk 0:00:04]}  Qe7 {[%clk 0:01:07]} 29. Bg5 {[%clk 0:00:04]}  Bf6 {[%clk 0:01:04]} 30. Bxf6 {[%clk 0:00:04]}  Qxf6 {[%clk 0:01:05]} 31. Nd7 {[%clk 0:00:03]}  Qd8 {[%clk 0:01:03]} 32. Nde5 {[%clk 0:00:03]}  Nxe5 {[%clk 0:01:00]} 33. Nxe5 {[%clk 0:00:04]}  Bxg2 {[%clk 0:00:59]} 34. Kxg2 {[%clk 0:00:05]}  Rc2 {[%clk 0:00:56]} 35. Qf4 {[%clk 0:00:05]}  Qd5+ {[%clk 0:00:56]} 36. Kg1 {[%clk 0:00:05]}  Qb7 {[%clk 0:00:52]} 37. Ng4 {[%clk 0:00:04]}  Nd5 {[%clk 0:00:50]} 38. Qf3 {[%clk 0:00:02]}  Kg7 {[%clk 0:00:41]} 39. Re1 {[%clk 0:00:02]}  Rxb2 {[%clk 0:00:40]} 40. Re5 {[%clk 0:00:02]}  h5 {[%clk 0:00:38]} 41. Ne3 {[%clk 0:00:01]}  a4 {[%clk 0:00:31]} 42. Nxd5 {[%clk 0:00:01]}  exd5 {[%clk 0:00:32]} 43. Rxd5 {[%clk 0:00:01]}  a3 {[%clk 0:00:31]} 44. Re1 {[%clk 0:00:02]}  a2 {[%clk 0:00:30]} 45. Qe4 {[%clk 0:00:02]}  a1=Q {[%clk 0:00:23]} 46. Rxa1 {[%clk 0:00:02]}  Rxa1+ {[%clk 0:00:22]} 47. Kg2 {[%clk 0:00:03]}  Raa2 {[%clk 0:00:18]} 48. Kh3 {[%clk 0:00:02]}  Rxf2 {[%clk 0:00:17]} 49. Qe5+ {[%clk 0:00:03]}  Kh7 {[%clk 0:00:17]} 0-1


[Site "https://www.chess.com"]

[Event "Titled Tuesday Blitz January 03 Late 2023"]
[White "Vlassov, Nikolai"]
[Black "Sukandar, Irine Kharisma"]
[WhiteFideId "4103360"]
[BlackFideId "7101937"]
[WhiteElo "2283"]
[BlackElo "2390"]
[Result "0-1"]
[Round "06"]
[TimeControl "180+2"]
[Date "2023.01.03"]
[WhiteClock "0:00:03"]
[BlackClock "0:00:04"]

1. e4 {[%clk 0:03:00]}  e5 {[%clk 0:02:58]} 2. Bc4 {[%clk 0:03:00]}  Nf6 {[%clk 0:02:57]} 3. d3 {[%clk 0:03:00]}  Be7 {[%clk 0:02:55]} 4. f4 {[%clk 0:02:59]}  Nc6 {[%clk 0:02:37]} 5. Nf3 {[%clk 0:02:58]}  d6 {[%clk 0:02:28]} 6. Nc3 {[%clk 0:02:57]}  Bg4 {[%clk 0:02:26]} 7. O-O {[%clk 0:02:54]}  exf4 {[%clk 0:02:21]} 8. Bxf4 {[%clk 0:02:53]}  O-O {[%clk 0:02:21]} 9. h3 {[%clk 0:02:49]}  Be6 {[%clk 0:02:19]} 10. Nd5 {[%clk 0:02:46]}  Bxd5 {[%clk 0:02:17]} 11. exd5 {[%clk 0:02:33]}  Na5 {[%clk 0:02:16]} 12. Nd4 {[%clk 0:02:30]}  Nxc4 {[%clk 0:02:07]} 13. dxc4 {[%clk 0:02:30]}  Nd7 {[%clk 0:02:06]} 14. Nf5 {[%clk 0:02:25]}  Bf6 {[%clk 0:02:06]} 15. Qg4 {[%clk 0:02:17]}  Kh8 {[%clk 0:01:53]} 16. c3 {[%clk 0:02:02]}  Ne5 {[%clk 0:01:52]} 17. Bxe5 {[%clk 0:02:00]}  Bxe5 {[%clk 0:01:51]} 18. Rf3 {[%clk 0:01:58]}  Qf6 {[%clk 0:01:45]} 19. Raf1 {[%clk 0:01:56]}  Qg6 {[%clk 0:01:43]} 20. Qh4 {[%clk 0:01:47]}  Rae8 {[%clk 0:01:38]} 21. Ne7 {[%clk 0:01:35]}  Qc2 {[%clk 0:01:19]} 22. R3f2 {[%clk 0:01:15]}  Qd3 {[%clk 0:01:14]} 23. Rxf7 {[%clk 0:01:09]}  Rxf7 {[%clk 0:01:04]} 24. Rxf7 {[%clk 0:01:08]}  Qd1+ {[%clk 0:00:53]} 25. Kf2 {[%clk 0:00:36]}  Qd2+ {[%clk 0:00:52]} 26. Kf1 {[%clk 0:00:29]}  Qc1+ {[%clk 0:00:40]} 27. Kf2 {[%clk 0:00:18]}  Qxb2+ {[%clk 0:00:39]} 28. Kf1 {[%clk 0:00:18]}  Qc1+ {[%clk 0:00:36]} 29. Kf2 {[%clk 0:00:18]}  Qc2+ {[%clk 0:00:18]} 30. Kf1 {[%clk 0:00:18]}  Bxc3 {[%clk 0:00:16]} 31. Qf4 {[%clk 0:00:09]}  Qd1+ {[%clk 0:00:09]} 32. Kf2 {[%clk 0:00:09]}  Bd4+ {[%clk 0:00:06]} 33. Kg3 {[%clk 0:00:07]}  Be5 {[%clk 0:00:06]} 34. Nf5 {[%clk 0:00:04]}  Bxf4+ {[%clk 0:00:05]} 35. Kxf4 {[%clk 0:00:05]}  Qd2+ {[%clk 0:00:04]} 36. Kg3 {[%clk 0:00:05]}  Qg5+ {[%clk 0:00:04]} 37. Kh2 {[%clk 0:00:05]}  Qf4+ {[%clk 0:00:05]} 38. Ng3 {[%clk 0:00:03]}  Qxf7 {[%clk 0:00:04]} 0-1


[Site "https://www.chess.com"]

[Event "Titled Tuesday Blitz January 03 Late 2023"]
[White "Zomorrodian, Eilia"]
[Black "Popilski, Gil"]
[WhiteFideId "12551805"]
[BlackFideId "2809060"]
[WhiteElo "2109"]
[BlackElo "2443"]
[Result "0-1"]
[Round "06"]
[TimeControl "180+2"]
[Date "2023.01.03"]
[WhiteClock "0:00:04"]
[BlackClock "0:00:10"]

1. Nf3 {[%clk 0:03:00]}  g6 {[%clk 0:02:54]} 2. c4 {[%clk 0:02:59]}  Bg7 {[%clk 0:02:54]} 3. g3 {[%clk 0:02:55]}  e5 {[%clk 0:02:53]} 4. d3 {[%clk 0:02:53]}  Ne7 {[%clk 0:02:51]} 5. Bg2 {[%clk 0:02:53]}  O-O {[%clk 0:02:49]} 6. Nc3 {[%clk 0:02:53]}  c6 {[%clk 0:02:45]} 7. O-O {[%clk 0:02:48]}  d5 {[%clk 0:02:42]} 8. Bg5 {[%clk 0:02:42]}  d4 {[%clk 0:02:40]} 9. Ne4 {[%clk 0:02:41]}  f6 {[%clk 0:02:37]} 10. Bc1 {[%clk 0:02:35]}  f5 {[%clk 0:02:36]} 11. Ned2 {[%clk 0:02:35]}  a5 {[%clk 0:02:32]} 12. c5 {[%clk 0:02:35]}  Na6 {[%clk 0:02:30]} 13. Qc2 {[%clk 0:02:35]}  h6 {[%clk 0:02:28]} 14. b3 {[%clk 0:02:27]}  Nd5 {[%clk 0:02:16]} 15. Nc4 {[%clk 0:02:25]}  e4 {[%clk 0:02:10]} 16. Nfe5 {[%clk 0:02:03]}  Qe8 {[%clk 0:02:09]} 17. f4 {[%clk 0:01:59]}  exf3 {[%clk 0:02:05]} 18. Nxf3 {[%clk 0:01:58]}  Ndb4 {[%clk 0:02:01]} 19. Qd2 {[%clk 0:01:41]}  Nxc5 {[%clk 0:01:57]} 20. Ba3 {[%clk 0:01:39]}  Nca6 {[%clk 0:00:31]} 21. Nxa5 {[%clk 0:01:36]}  c5 {[%clk 0:00:31]} 22. Rac1 {[%clk 0:01:30]}  b6 {[%clk 0:00:27]} 23. Nc4 {[%clk 0:01:30]}  Rb8 {[%clk 0:00:27]} 24. Bxb4 {[%clk 0:01:03]}  Nxb4 {[%clk 0:00:26]} 25. Nd6 {[%clk 0:00:47]}  Qe6 {[%clk 0:00:25]} 26. Nxc8 {[%clk 0:00:47]}  Rbxc8 {[%clk 0:00:25]} 27. Ne1 {[%clk 0:00:26]}  Rfe8 {[%clk 0:00:19]} 28. Rf2 {[%clk 0:00:21]}  Nd5 {[%clk 0:00:14]} 29. Bxd5 {[%clk 0:00:20]}  Qxd5 {[%clk 0:00:15]} 30. Ng2 {[%clk 0:00:18]}  g5 {[%clk 0:00:14]} 31. Rcf1 {[%clk 0:00:18]}  Re5 {[%clk 0:00:15]} 32. h4 {[%clk 0:00:17]}  Bf6 {[%clk 0:00:13]} 33. Qc2 {[%clk 0:00:10]}  b5 {[%clk 0:00:12]} 34. a4 {[%clk 0:00:10]}  c4 {[%clk 0:00:10]} 35. axb5 {[%clk 0:00:08]}  c3 {[%clk 0:00:10]} 36. b6 {[%clk 0:00:08]}  Rb8 {[%clk 0:00:10]} 37. Qa2 {[%clk 0:00:07]}  Rxb6 {[%clk 0:00:10]} 38. Qa7 {[%clk 0:00:07]}  Rbe6 {[%clk 0:00:10]} 39. Qb8+ {[%clk 0:00:07]}  Re8 {[%clk 0:00:10]} 40. Qc7 {[%clk 0:00:08]}  Rxe2 {[%clk 0:00:09]} 41. Rxe2 {[%clk 0:00:03]}  Rxe2 {[%clk 0:00:10]} 42. Rf2 {[%clk 0:00:03]}  Rxf2 {[%clk 0:00:10]} 43. Kxf2 {[%clk 0:00:04]}  Qe5 {[%clk 0:00:10]} 44. hxg5 {[%clk 0:00:04]}  Qxc7 {[%clk 0:00:10]} 0-1


[Site "https://www.chess.com"]

[Event "Titled Tuesday Blitz January 03 Late 2023"]
[White "Baskin, Robert"]
[Black "Sos Andreu, Eric"]
[WhiteFideId "24662402"]
[BlackFideId "22247017"]
[WhiteElo "2442"]
[BlackElo "2352"]
[Result "1-0"]
[Round "06"]
[TimeControl "180+2"]
[Date "2023.01.03"]
[WhiteClock "0:00:11"]
[BlackClock "0:00:05"]

1. c4 {[%clk 0:02:59]}  c6 {[%clk 0:02:50]} 2. Nf3 {[%clk 0:02:58]}  d5 {[%clk 0:02:51]} 3. d4 {[%clk 0:02:48]}  Nf6 {[%clk 0:02:50]} 4. Nc3 {[%clk 0:02:45]}  a6 {[%clk 0:02:48]} 5. g3 {[%clk 0:02:41]}  Bf5 {[%clk 0:02:45]} 6. Qb3 {[%clk 0:02:36]}  Ra7 {[%clk 0:02:41]} 7. Bf4 {[%clk 0:02:25]}  e6 {[%clk 0:02:36]} 8. Nh4 {[%clk 0:02:20]}  Bg6 {[%clk 0:02:35]} 9. c5 {[%clk 0:02:19]}  Nbd7 {[%clk 0:02:32]} 10. Bg2 {[%clk 0:02:11]}  Be7 {[%clk 0:02:29]} 11. O-O {[%clk 0:02:03]}  O-O {[%clk 0:02:22]} 12. Nxg6 {[%clk 0:01:53]}  hxg6 {[%clk 0:02:23]} 13. Qd1 {[%clk 0:01:34]}  Ra8 {[%clk 0:02:12]} 14. b4 {[%clk 0:01:34]}  b5 {[%clk 0:02:08]} 15. a4 {[%clk 0:01:31]}  Qc8 {[%clk 0:01:59]} 16. Qb3 {[%clk 0:01:23]}  Qb7 {[%clk 0:01:58]} 17. Ra2 {[%clk 0:01:23]}  Ra7 {[%clk 0:01:50]} 18. Rfa1 {[%clk 0:01:23]}  Rfa8 {[%clk 0:01:50]} 19. e3 {[%clk 0:01:15]}  Nh5 {[%clk 0:01:45]} 20. Bf3 {[%clk 0:01:03]}  Nxf4 {[%clk 0:01:44]} 21. gxf4 {[%clk 0:01:04]}  g5 {[%clk 0:01:33]} 22. fxg5 {[%clk 0:01:03]}  Bxg5 {[%clk 0:01:34]} 23. Qa3 {[%clk 0:01:03]}  bxa4 {[%clk 0:01:29]} 24. Qxa4 {[%clk 0:00:55]}  Bf6 {[%clk 0:01:25]} 25. Be2 {[%clk 0:00:56]}  a5 {[%clk 0:01:25]} 26. b5 {[%clk 0:00:43]}  Nxc5 {[%clk 0:01:25]} 27. bxc6 {[%clk 0:00:40]}  Qc7 {[%clk 0:01:10]} 28. dxc5 {[%clk 0:00:36]}  Bxc3 {[%clk 0:01:10]} 29. Rb1 {[%clk 0:00:36]}  Bb4 {[%clk 0:01:10]} 30. Rc2 {[%clk 0:00:21]}  g6 {[%clk 0:01:10]} 31. Qb5 {[%clk 0:00:17]}  Qe5 {[%clk 0:01:04]} 32. Qb6 {[%clk 0:00:15]}  Kg7 {[%clk 0:00:59]} 33. Rb3 {[%clk 0:00:12]}  Rh8 {[%clk 0:00:50]} 34. f4 {[%clk 0:00:12]}  Qa1+ {[%clk 0:00:24]} 35. Kg2 {[%clk 0:00:12]}  Raa8 {[%clk 0:00:24]} 36. c7 {[%clk 0:00:11]}  Qe1 {[%clk 0:00:23]} 37. h3 {[%clk 0:00:08]}  Qh4 {[%clk 0:00:22]} 38. Bg4 {[%clk 0:00:09]}  f5 {[%clk 0:00:16]} 39. Qxe6 {[%clk 0:00:09]}  fxg4 {[%clk 0:00:16]} 40. Qd7+ {[%clk 0:00:09]}  Kh6 {[%clk 0:00:14]} 41. hxg4 {[%clk 0:00:09]}  Rae8 {[%clk 0:00:06]} 42. e4 {[%clk 0:00:09]}  Re7 {[%clk 0:00:03]} 43. Rh3 {[%clk 0:00:09]}  Rxd7 {[%clk 0:00:04]} 44. Rxh4+ {[%clk 0:00:09]}  Kg7 {[%clk 0:00:04]} 45. Rxh8 {[%clk 0:00:10]}  Rxc7 {[%clk 0:00:05]} 46. Re8 {[%clk 0:00:07]}  dxe4 {[%clk 0:00:05]} 47. Rxe4 {[%clk 0:00:08]}  Rxc5 {[%clk 0:00:04]} 48. Rxc5 {[%clk 0:00:08]}  Bxc5 {[%clk 0:00:05]} 49. Rc4 {[%clk 0:00:08]}  Bb4 {[%clk 0:00:06]} 50. Kf3 {[%clk 0:00:09]}  Kf6 {[%clk 0:00:06]} 51. Ke4 {[%clk 0:00:09]}  Ke6 {[%clk 0:00:07]} 52. Rc6+ {[%clk 0:00:09]}  Kf7 {[%clk 0:00:07]} 53. g5 {[%clk 0:00:09]}  Bd2 {[%clk 0:00:03]} 54. Ra6 {[%clk 0:00:09]}  Bc3 {[%clk 0:00:02]} 55. f5 {[%clk 0:00:09]}  gxf5+ {[%clk 0:00:02]} 56. Kxf5 {[%clk 0:00:10]}  Kg7 {[%clk 0:00:03]} 57. Ra7+ {[%clk 0:00:10]}  Kg8 {[%clk 0:00:03]} 58. Kg6 {[%clk 0:00:11]}  Kf8 {[%clk 0:00:04]} 59. Kh7 {[%clk 0:00:11]}  Bd4 {[%clk 0:00:04]} 60. Ra8+ {[%clk 0:00:10]}  Kf7 {[%clk 0:00:04]} 61. Rxa5 {[%clk 0:00:10]}  Kf8 {[%clk 0:00:04]} 62. g6 {[%clk 0:00:11]}  Ke7 {[%clk 0:00:05]} 63. g7 {[%clk 0:00:11]} 1-0


[Site "https://www.chess.com"]

[Event "Titled Tuesday Blitz January 03 Late 2023"]
[White "Kalajzic, Ivan"]
[Black "Goroshkov, Maksym"]
[WhiteFideId "14506378"]
[BlackFideId "14142716"]
[WhiteElo "2062"]
[BlackElo "2287"]
[Result "1/2-1/2"]
[Round "06"]
[TimeControl "180+2"]
[Date "2023.01.03"]
[WhiteClock "0:00:07"]
[BlackClock "0:00:11"]

1. b3 {[%clk 0:03:00]}  Nf6 {[%clk 0:02:58]} 2. Bb2 {[%clk 0:03:01]}  g6 {[%clk 0:02:58]} 3. Bxf6 {[%clk 0:03:01]}  exf6 {[%clk 0:02:59]} 4. c4 {[%clk 0:03:02]}  Bg7 {[%clk 0:03:00]} 5. Nc3 {[%clk 0:03:02]}  f5 {[%clk 0:02:59]} 6. g3 {[%clk 0:03:02]}  O-O {[%clk 0:02:59]} 7. Bg2 {[%clk 0:03:03]}  c5 {[%clk 0:03:00]} 8. e3 {[%clk 0:03:03]}  Nc6 {[%clk 0:03:01]} 9. Nge2 {[%clk 0:03:03]}  b6 {[%clk 0:02:59]} 10. O-O {[%clk 0:03:02]}  Bb7 {[%clk 0:02:56]} 11. a3 {[%clk 0:03:02]}  Rb8 {[%clk 0:02:53]} 12. Rb1 {[%clk 0:03:02]}  Ne5 {[%clk 0:02:52]} 13. Nd5 {[%clk 0:02:57]}  Bxd5 {[%clk 0:02:50]} 14. Bxd5 {[%clk 0:02:56]}  d6 {[%clk 0:02:50]} 15. d4 {[%clk 0:02:46]}  Ng4 {[%clk 0:02:49]} 16. b4 {[%clk 0:02:38]}  Qe7 {[%clk 0:02:46]} 17. Qd3 {[%clk 0:02:27]}  Rfe8 {[%clk 0:02:32]} 18. Bc6 {[%clk 0:02:21]}  Rec8 {[%clk 0:02:29]} 19. Bd5 {[%clk 0:02:18]}  Nf6 {[%clk 0:02:27]} 20. Bf3 {[%clk 0:02:12]}  Ne4 {[%clk 0:02:24]} 21. Nf4 {[%clk 0:02:06]}  Nf6 {[%clk 0:02:11]} 22. Nd5 {[%clk 0:02:05]}  Nxd5 {[%clk 0:02:10]} 23. Bxd5 {[%clk 0:02:06]}  cxd4 {[%clk 0:01:58]} 24. exd4 {[%clk 0:02:05]}  Qf6 {[%clk 0:01:58]} 25. Rfd1 {[%clk 0:02:02]}  f4 {[%clk 0:01:58]} 26. Qf3 {[%clk 0:01:56]}  fxg3 {[%clk 0:01:57]} 27. Qxf6 {[%clk 0:01:54]}  gxh2+ {[%clk 0:01:56]} 28. Kxh2 {[%clk 0:01:49]}  Bxf6 {[%clk 0:01:57]} 29. Rb3 {[%clk 0:01:19]}  Re8 {[%clk 0:01:41]} 30. Rf3 {[%clk 0:01:19]}  Kg7 {[%clk 0:01:41]} 31. Rd2 {[%clk 0:01:03]}  Re1 {[%clk 0:01:34]} 32. Kg2 {[%clk 0:01:02]}  Rbe8 {[%clk 0:01:32]} 33. Rf4 {[%clk 0:00:57]}  R8e7 {[%clk 0:01:28]} 34. Rd3 {[%clk 0:00:57]}  Bg5 {[%clk 0:01:24]} 35. Rff3 {[%clk 0:00:50]}  f5 {[%clk 0:01:22]} 36. c5 {[%clk 0:00:46]}  dxc5 {[%clk 0:01:19]} 37. dxc5 {[%clk 0:00:47]}  bxc5 {[%clk 0:01:19]} 38. bxc5 {[%clk 0:00:48]}  Rc1 {[%clk 0:01:19]} 39. Rc3 {[%clk 0:00:45]}  Ree1 {[%clk 0:01:13]} 40. Rxc1 {[%clk 0:00:39]}  Rxc1 {[%clk 0:01:14]} 41. c6 {[%clk 0:00:39]}  h5 {[%clk 0:00:57]} 42. Rb3 {[%clk 0:00:39]}  Bf4 {[%clk 0:00:56]} 43. Rb7+ {[%clk 0:00:38]}  Kh6 {[%clk 0:00:56]} 44. Rxa7 {[%clk 0:00:36]}  Rc3 {[%clk 0:00:56]} 45. a4 {[%clk 0:00:34]}  h4 {[%clk 0:00:56]} 46. a5 {[%clk 0:00:32]}  h3+ {[%clk 0:00:55]} 47. Kf1 {[%clk 0:00:32]}  Rc1+ {[%clk 0:00:52]} 48. Ke2 {[%clk 0:00:31]}  h2 {[%clk 0:00:50]} 49. a6 {[%clk 0:00:31]}  h1=Q {[%clk 0:00:50]} 50. Bxh1 {[%clk 0:00:30]}  Rxh1 {[%clk 0:00:51]} 51. Kf3 {[%clk 0:00:25]}  Be5 {[%clk 0:00:47]} 52. Re7 {[%clk 0:00:24]}  Bd4 {[%clk 0:00:40]} 53. a7 {[%clk 0:00:21]}  Bxa7 {[%clk 0:00:15]} 54. Rxa7 {[%clk 0:00:21]}  Rc1 {[%clk 0:00:16]} 55. Rc7 {[%clk 0:00:18]}  Kg5 {[%clk 0:00:16]} 56. Rc8 {[%clk 0:00:18]}  Rc3+ {[%clk 0:00:16]} 57. Ke2 {[%clk 0:00:18]}  Kf4 {[%clk 0:00:17]} 58. c7 {[%clk 0:00:18]}  g5 {[%clk 0:00:18]} 59. Kd2 {[%clk 0:00:18]}  Rc6 {[%clk 0:00:17]} 60. Kd3 {[%clk 0:00:18]}  g4 {[%clk 0:00:17]} 61. Kd4 {[%clk 0:00:19]}  Rc1 {[%clk 0:00:17]} 62. Kd5 {[%clk 0:00:19]}  Kf3 {[%clk 0:00:16]} 63. Kd6 {[%clk 0:00:16]}  f4 {[%clk 0:00:16]} 64. Rf8 {[%clk 0:00:14]}  Rd1+ {[%clk 0:00:16]} 65. Ke7 {[%clk 0:00:14]}  Rc1 {[%clk 0:00:15]} 66. Kd7 {[%clk 0:00:14]}  Rd1+ {[%clk 0:00:15]} 67. Ke7 {[%clk 0:00:15]}  Rc1 {[%clk 0:00:16]} 68. Kd7 {[%clk 0:00:15]}  Kxf2 {[%clk 0:00:10]} 69. Rxf4+ {[%clk 0:00:15]}  Kg3 {[%clk 0:00:11]} 70. Rf6 {[%clk 0:00:12]}  Rxc7+ {[%clk 0:00:10]} 71. Kxc7 {[%clk 0:00:12]}  Kh2 {[%clk 0:00:11]} 72. Rg6 {[%clk 0:00:09]}  g3 {[%clk 0:00:11]} 73. Rh6+ {[%clk 0:00:09]}  Kg1 {[%clk 0:00:11]} 74. Kd6 {[%clk 0:00:09]}  g2 {[%clk 0:00:12]} 75. Ke5 {[%clk 0:00:09]}  Kf2 {[%clk 0:00:12]} 76. Rf6+ {[%clk 0:00:10]}  Ke2 {[%clk 0:00:12]} 77. Rg6 {[%clk 0:00:09]}  Kf2 {[%clk 0:00:13]} 78. Kf4 {[%clk 0:00:07]}  g1=R {[%clk 0:00:11]} 79. Rxg1 {[%clk 0:00:07]}  Kxg1 {[%clk 0:00:11]} 1/2-1/2


[Site "https://www.chess.com"]